bitfinex/quotes_SOLUSD_20241210
["timestamp","ask_amount","ask_price","bid_price","bid_amount"]
[1733801399545,27.7147,210.21,209.62,262.2434451]
[1733801399546,239.03361369,210.08,209.74,40.15666288]
[1733801399757,7.6411,210.07,209.7,40.15666288]
[1733801400273,7.6411,210.07,209.74,40.15666288]
[1733801400785,7.6411,210.07,209.79,40.15666288]
[1733801400968,7.6411,210.07,209.89,40.15666288]
[1733801401273,13.3047,210.14,209.96,42.48824018]
[1733801401447,13.3047,210.34,210.02,42.48824018]
[1733801401646,4.06237318,210.33,209.96,42.48824018]
[1733801401846,13.3047,210.34,210.04,42.48824018]
[1733801402074,13.3047,210.34,210.08,42.48824018]
[1733801402374,13.3047,210.34,210.09,42.48824018]
[1733801402747,13.3047,210.34,210.13,42.48824018]
[1733801402948,13.3047,210.34,210.17,42.48824018]
[1733801403356,13.3047,210.34,210.17,312.0]
[1733801403557,13.3047,210.34,210.14,42.48824018]
[1733801403875,13.3047,210.34,210.16,42.48824018]
[1733801404073,13.3047,210.34,210.18,42.48824018]
[1733801404262,13.3047,210.34,210.2,42.48824018]
[1733801404460,13.3047,210.34,210.16,42.48824018]
[1733801404661,13.3047,210.34,210.1,42.48824018]
[1733801404855,13.3047,210.34,210.0,52.48824018]
[1733801404856,13.3047,210.34,210.06,42.48824018]
[1733801405056,13.3047,210.34,210.1,42.48824018]
[1733801405281,13.3047,210.34,210.13,42.48824018]
[1733801405448,13.3047,210.34,210.2,42.48824018]
[1733801405650,13.3047,210.34,210.1,42.48824018]
[1733801405651,13.3047,210.34,210.22,42.48824018]
[1733801405873,1.0607976,210.38,210.26,42.48824018]
[1733801406072,1.0607976,210.38,210.2,42.48824018]
[1733801406073,13.3047,210.45,210.2,42.48824018]
[1733801406281,238.52861199,210.59,210.23,35.91622496]
[1733801406282,199.30879652,210.51,210.23,35.91622496]
[1733801406449,14.41,210.49,210.2,7.18324499]
[1733801406646,14.41,210.49,210.15,14.36648998]
[1733801406647,14.41,210.48,210.16,7.18324499]
[1733801406865,10.0,210.58,210.21,42.48824018]
[1733801407070,0.25380117,210.59,210.27,42.48824018]
[1733801407275,238.27481082,210.51,210.16,42.48824018]
[1733801407577,238.27481082,210.51,210.15,42.48824018]
[1733801407879,238.27481082,210.51,210.19,42.48824018]
[1733801408077,238.52861199,210.59,210.25,42.48824018]
[1733801408479,238.52861199,210.59,210.11,10.0]
[1733801408480,238.52861199,210.59,210.27,42.48824018]
[1733801408772,238.52861199,210.59,210.23,42.48824018]
[1733801409353,4.06237318,210.46,210.1,7.15810989]
[1733801409573,22.0511,210.42,210.1,7.15810989]
[1733801409755,4.06237318,210.41,210.1,7.15810989]
[1733801409961,7.6411,210.42,210.1,7.15810989]
[1733801410182,7.6411,210.42,210.13,42.48824018]
[1733801410485,7.6411,210.42,210.19,42.48824018]
[1733801410655,7.6411,210.42,210.15,42.48824018]
[1733801410855,7.6411,210.42,210.09,42.48824018]
[1733801411083,7.6411,210.42,210.0,42.48824018]
[1733801411084,7.6411,210.42,210.15,42.48824018]
[1733801411257,7.6411,210.42,210.19,42.48824018]
[1733801411457,13.3047,210.44,210.23,42.48824018]
[1733801411764,13.3047,210.44,210.09,10.0]
[1733801411951,13.3047,210.44,210.12,42.48824018]
[1733801412154,13.3047,210.44,210.08,42.48824018]
[1733801412350,13.3047,210.44,210.1,42.48824018]
[1733801412579,13.3047,210.44,210.12,42.48824018]
[1733801412785,13.3047,210.44,210.16,42.48824018]
[1733801412979,13.3047,210.44,210.2,42.48824018]
[1733801413483,13.3047,210.44,210.18,42.48824018]
[1733801413691,13.3047,210.44,210.2,42.48824018]
[1733801413889,13.3047,210.44,210.24,42.48824018]
[1733801414386,13.3047,210.44,210.2,42.48824018]
[1733801414756,13.3047,210.44,210.24,42.48824018]
[1733801414955,0.25380117,210.59,210.3,42.48824018]
[1733801415165,0.25380117,210.59,210.42,42.48824018]
[1733801415554,0.25380117,210.59,210.36,42.48824018]
[1733801415759,0.25380117,210.59,210.3,42.48824018]
[1733801415982,0.25380117,210.59,210.32,42.48824018]
[1733801416306,20.1229,210.57,210.22,42.48824018]
[1733801416509,12.3761,210.51,210.18,42.48824018]
[1733801416795,12.3761,210.46,210.16,42.48824018]
[1733801416997,14.41,210.45,210.14,42.48824018]
[1733801417308,14.41,210.45,210.0,52.48824018]
[1733801417309,12.3761,210.46,210.2,42.48824018]
[1733801417476,12.3761,210.46,209.98,9.45953544]
[1733801417477,10.0,210.43,209.98,9.45953544]
[1733801417793,14.06227318,210.41,210.08,42.48824018]
[1733801417998,20.1229,210.36,210.06,42.48824018]
[1733801418304,4.06237318,210.33,210.0,42.48824018]
[1733801418509,9.9999,210.26,209.92,54.86434018]
[1733801418678,12.3761,210.31,209.98,42.48824018]
[1733801419010,12.3761,210.31,210.1,42.48824018]
[1733801419173,12.3761,210.31,210.16,42.48824018]
[1733801419371,12.3761,210.31,210.14,42.48824018]
[1733801419692,12.3761,210.31,210.12,42.48824018]
[1733801419865,12.3761,210.31,210.16,42.48824018]
[1733801420068,7.7468,210.36,210.18,42.48824018]
[1733801420364,7.7468,210.36,210.1,42.48824018]
[1733801420365,7.7468,210.36,210.2,42.48824018]
[1733801420683,7.7468,210.36,209.96,11.9068]
[1733801420889,7.7468,210.36,210.17,42.48824018]
[1733801421292,7.7468,210.36,210.25,42.48824018]
[1733801421714,7.7468,210.58,210.33,42.48824018]
[1733801421994,7.7468,210.58,210.2,42.48824018]
[1733801421995,7.7468,210.58,210.29,42.48824018]
[1733801422209,7.7468,210.58,210.33,42.48824018]
[1733801422493,7.7468,210.58,210.35,42.48824018]
[1733801422707,7.7468,210.58,210.3,42.48824018]
[1733801422708,7.7468,210.58,210.37,42.48824018]
[1733801422999,7.7468,210.58,210.41,42.48824018]
[1733801423301,7.7468,210.58,210.37,42.48824018]
[1733801423488,7.7468,210.58,210.39,42.48824018]
[1733801423796,7.7468,210.58,210.38,42.48824018]
[1733801424010,7.7468,210.58,210.42,42.48824018]
[1733801424416,7.7468,210.58,210.4,42.48824018]
[1733801424919,0.25380117,210.59,210.4,42.48824018]
[1733801425080,0.25380117,210.59,210.46,42.48824018]
[1733801425408,0.25380117,210.59,210.42,42.48824018]
[1733801425590,0.25380117,210.59,210.46,42.48824018]
[1733801425793,0.25380117,210.59,210.5,42.48824018]
[1733801426113,0.25380117,210.59,210.54,42.48824018]
[1733801426405,0.25380117,210.59,210.57,42.48824018]
[1733801426819,12.3761,210.82,210.64,42.48824018]
[1733801426997,12.3761,210.82,210.62,42.48824018]
[1733801427187,12.3761,210.82,210.5,42.48824018]
[1733801427188,12.3761,210.82,210.58,42.48824018]
[1733801427384,12.3761,210.82,210.42,43.902374]
[1733801427604,12.3761,210.82,210.51,42.48824018]
[1733801427813,9.9999,210.81,210.49,42.48824018]
[1733801428016,12.3761,210.82,210.59,42.48824018]
[1733801428187,12.3761,210.82,210.61,42.48824018]
[1733801428387,12.3761,210.82,210.57,42.48824018]
[1733801428994,12.3761,210.82,210.59,42.48824018]
[1733801429205,12.5243,210.93,210.65,42.48824018]
[1733801430087,10.0,210.85,210.42,10.0]
[1733801430286,10.0,210.87,210.55,42.48824018]
[1733801430488,12.5243,210.7,210.51,42.48824018]
[1733801430688,12.5243,210.7,210.49,42.48824018]
[1733801431201,12.5243,210.7,210.33,14.98350824]
[1733801431202,20.0,210.53,210.25,12.2824]
[1733801431516,20.0,210.53,210.32,42.48824018]
[1733801431716,20.7377,210.52,210.26,42.48824018]
[1733801432207,10.0,210.51,210.08,21.9]
[1733801432413,10.0,210.49,210.17,42.48824018]
[1733801432728,20.7377,210.52,210.27,42.48824018]
[1733801433020,20.7377,210.52,210.23,42.48824018]
[1733801433220,20.7377,210.52,210.31,42.48824018]
[1733801433390,11.0187836,210.66,210.2,42.48824018]
[1733801433391,12.5243,210.61,210.42,42.48824018]
[1733801433591,12.5243,210.61,210.46,42.48824018]
[1733801433788,12.5243,210.61,210.23,12.2824]
[1733801434102,10.0,210.57,210.22,42.48824018]
[1733801434293,4.06237318,210.59,210.14,10.0]
[1733801434294,10.0,210.59,210.26,42.48824018]
[1733801434611,19.9999,210.59,210.24,42.48824018]
[1733801434789,10.0,210.52,210.22,42.48824018]
[1733801434988,0.12549,210.55,210.28,42.48824018]
[1733801435212,218.40030082,210.6,210.32,42.48824018]
[1733801435516,12.5243,210.61,210.42,42.48824018]
[1733801435713,12.5243,210.73,210.52,42.48824018]
[1733801435917,12.5243,210.73,210.32,12.2824]
[1733801436088,12.5243,210.73,210.45,42.48824018]
[1733801436416,12.5243,210.73,210.51,42.48824018]
[1733801436626,12.5243,210.87,210.64,42.48824018]
[1733801436920,12.5243,210.87,210.6,42.48824018]
[1733801437118,12.5243,210.87,210.64,42.48824018]
[1733801438813,12.5243,210.87,210.61,42.48824018]
[1733801439016,12.5243,210.87,210.63,42.48824018]
[1733801439523,12.5243,210.87,210.59,42.48824018]
[1733801439697,12.5243,210.87,210.57,42.48824018]
[1733801439892,12.5243,210.87,210.59,42.48824018]
[1733801440291,12.5243,210.87,210.63,42.48824018]
[1733801440524,12.5243,210.87,210.59,42.48824018]
[1733801440918,12.5243,210.87,210.55,42.48824018]
[1733801441113,12.5243,210.87,210.5,42.48824018]
[1733801441114,12.5243,210.87,210.57,42.48824018]
[1733801441305,12.5243,210.87,210.59,42.48824018]
[1733801441507,10.0,210.82,210.53,42.48824018]
[1733801441700,9.9999,210.82,210.55,42.48824018]
[1733801441899,9.9999,210.82,210.4,52.48824018]
[1733801441900,10.0,210.8,210.53,42.48824018]
[1733801442116,238.27481082,210.94,210.4,42.48824018]
[1733801442117,20.803,210.72,210.45,42.48824018]
[1733801442437,20.803,210.72,210.5,42.48824018]
[1733801442632,20.803,210.72,210.56,42.48824018]
[1733801442796,20.803,210.72,210.58,42.48824018]
[1733801443209,9.9999,210.92,210.51,10.0]
[1733801443210,12.5501,210.82,210.62,42.48824018]
[1733801443407,12.5501,210.82,210.66,42.48824018]
[1733801444509,12.5501,210.82,210.64,42.48824018]
[1733801445309,12.5501,210.82,210.62,42.48824018]
[1733801445532,12.5501,210.82,210.56,42.48824018]
[1733801445731,12.5501,210.82,210.54,42.48824018]
[1733801446025,12.5501,210.82,210.56,42.48824018]
[1733801446226,12.5501,210.82,210.6,42.48824018]
[1733801447143,12.5501,210.98,210.69,42.48824018]
[1733801447447,10.0,210.97,210.69,42.48824018]
[1733801447650,10.0,210.92,210.65,42.48824018]
[1733801447853,9.9999,210.89,210.59,42.48824018]
[1733801448026,9.9999,210.82,210.53,42.48824018]
[1733801448226,10.0,210.8,210.51,56.96233657]
[1733801448444,10.0,210.85,210.53,42.48824018]
[1733801448752,10.0,210.85,210.51,14.47409639]
[1733801448753,20.803,210.86,210.59,42.48824018]
[1733801448921,20.803,210.86,210.61,42.48824018]
[1733801449327,20.803,210.86,210.69,42.48824018]
[1733801449544,20.803,210.86,210.6,42.48824018]
[1733801449545,12.5501,210.98,210.71,42.48824018]
[1733801449950,10.0,210.97,210.67,42.48824018]
[1733801450140,10.0,210.97,210.6,42.48824018]
[1733801450141,9.9999,210.96,210.65,42.48824018]
[1733801450646,12.5501,210.98,210.7,42.48824018]
[1733801450947,22.55,210.98,210.66,42.48824018]
[1733801451152,12.5501,210.98,210.68,42.48824018]
[1733801451343,12.5501,210.98,210.7,42.48824018]
[1733801451652,20.803,210.85,210.58,7.24333604]
[1733801451957,20.803,210.85,210.61,42.48824018]
[1733801452124,20.803,210.85,210.63,42.48824018]
[1733801452323,20.803,210.85,210.55,14.48122145]
[1733801452558,20.803,210.85,210.64,42.48824018]
[1733801453024,20.803,210.85,210.53,46.2145465]
[1733801453025,12.5501,210.94,210.7,42.48824018]
[1733801453452,12.5501,210.94,210.74,42.48824018]
[1733801453651,12.5501,210.94,210.76,42.48824018]
[1733801453950,12.5501,210.94,210.74,42.48824018]
[1733801454160,12.5501,210.94,210.65,11.8676]
[1733801454354,12.5501,210.94,210.69,42.48824018]
[1733801454657,12.5501,210.94,210.6,42.48824018]
[1733801454658,12.5501,210.94,210.71,42.48824018]
[1733801455357,12.5501,210.94,210.71,354.48824018]
[1733801455558,12.5501,210.94,210.71,42.48824018]
[1733801455748,12.5501,210.94,210.79,42.48824018]
[1733801456063,12.5501,210.94,210.81,42.48824018]
[1733801456232,1.0187836,211.03,210.83,42.48824018]
[1733801456629,11.0187836,211.03,210.64,11.8682]
[1733801456852,9.9999,210.98,210.67,42.48824018]
[1733801457060,1.0187836,211.03,210.71,42.48824018]
[1733801457264,1.0187836,211.03,210.73,42.48824018]
[1733801457554,9.9999,211.02,210.73,42.48824018]
[1733801457808,20.0,211.02,210.73,42.48824018]
[1733801458431,20.0,211.02,210.67,42.48824018]
[1733801458432,10.0,210.95,210.67,42.48824018]
[1733801458632,10.0,210.95,210.65,42.48824018]
[1733801458858,20.0,211.02,210.64,312.0]
[1733801458859,10.0,210.92,210.64,312.0]
[1733801459066,19.9999,210.88,210.63,14.50471848]
[1733801459356,9.9999,210.78,210.58,7.24582675]
[1733801459662,9.9999,210.69,210.52,28.99650359]
[1733801459965,20.0,210.53,210.52,28.99650359]
[1733801460260,20.0,210.53,210.39,42.48824018]
[1733801460444,20.0,210.53,210.37,14.497831]
[1733801460445,32.5501,210.53,210.37,14.497831]
[1733801460643,32.5501,210.53,210.42,54.96654922]
[1733801460847,32.5501,210.53,210.37,14.497831]
[1733801461363,32.5501,210.53,210.37,56.98607118]
[1733801461573,32.5501,210.53,210.39,42.48824018]
[1733801461870,32.5501,210.53,210.37,14.497831]
[1733801462072,32.5501,210.53,210.35,42.48824018]
[1733801462253,12.5501,210.66,210.5,42.48824018]
[1733801462443,8.2529,210.73,210.54,42.48824018]
[1733801462959,8.2529,210.73,210.4,52.48824018]
[1733801462960,8.2529,210.73,210.46,42.48824018]
[1733801463165,19.9999,210.72,210.39,42.48824018]
[1733801463352,19.9999,210.72,210.28,23.1912]
[1733801463353,10.0,210.67,210.35,42.48824018]
[1733801463540,18.2528,210.73,210.41,42.48824018]
[1733801463744,10.0,210.7,210.4,42.48824018]
[1733801463944,9.9999,210.72,210.42,42.48824018]
[1733801464178,20.0,210.53,210.44,42.48824018]
[1733801464353,8.2529,210.73,210.48,42.48824018]
[1733801464553,8.2529,210.73,210.5,42.48824018]
[1733801465048,8.2529,210.73,210.44,42.48824018]
[1733801465252,8.2529,210.73,210.3,42.48824018]
[1733801465253,8.2529,210.73,210.5,42.48824018]
[1733801465574,8.2529,210.73,210.48,42.48824018]
[1733801465748,8.2529,210.73,210.5,42.48824018]
[1733801466374,9.9999,210.71,210.41,42.48824018]
[1733801466768,9.9999,210.68,210.41,42.48824018]
[1733801467079,8.2529,210.73,210.31,11.887]
[1733801467080,0.12549,210.55,210.43,42.48824018]
[1733801467259,8.2529,210.73,210.47,42.48824018]
[1733801467444,8.2529,210.73,210.57,42.48824018]
[1733801467649,8.2529,210.73,210.55,42.48824018]
[1733801467973,8.2529,210.73,210.55,312.0]
[1733801468157,8.2529,210.73,210.57,42.48824018]
[1733801468547,8.2529,210.85,210.65,42.48824018]
[1733801468740,8.2529,210.85,210.67,42.48824018]
[1733801468944,8.2529,210.85,210.6,42.48824018]
[1733801468945,8.2529,210.85,210.69,42.48824018]
[1733801469154,12.5501,210.88,210.73,42.48824018]
[1733801469389,0.891733,210.94,210.75,42.48824018]
[1733801469587,0.891733,210.94,210.77,42.48824018]
[1733801469797,0.891733,210.94,210.71,21.8646]
[1733801470090,0.891733,210.94,210.81,42.48824018]
[1733801470264,0.891733,210.94,210.71,11.8646]
[1733801470265,0.891733,210.94,210.83,42.48824018]
[1733801470580,0.891733,210.94,210.81,42.48824018]
[1733801470783,0.891733,210.94,210.71,11.8646]
[1733801470784,0.891733,210.94,210.83,42.48824018]
[1733801471082,0.891733,210.94,210.84,42.48824018]
[1733801471257,0.891733,210.94,210.86,42.48824018]
[1733801471453,0.891733,210.94,210.83,312.0]
[1733801471780,0.891733,210.94,210.86,42.48824018]
[1733801471971,0.891733,210.94,210.9,42.48824018]
[1733801472674,0.891733,210.94,210.92,42.48824018]
[1733801473268,0.891733,210.94,210.88,42.48824018]
[1733801473466,0.891733,210.94,210.82,42.48824018]
[1733801473680,0.891733,210.94,210.78,42.48824018]
[1733801473864,0.891733,210.94,210.82,42.48824018]
[1733801474070,0.891733,210.94,210.86,42.48824018]
[1733801474255,0.891733,210.94,210.8,42.48824018]
[1733801474459,0.891733,210.94,210.76,42.48824018]
[1733801474685,0.891733,210.94,210.78,42.48824018]
[1733801474887,0.891733,210.94,210.74,42.48824018]
[1733801475086,12.3323,210.93,210.7,42.48824018]
[1733801475264,12.3323,210.93,210.72,42.48824018]
[1733801475591,0.891733,210.94,210.85,42.48824018]
[1733801475762,0.891733,210.94,210.91,42.48824018]
[1733801475963,0.891733,210.94,210.9,42.48824018]
[1733801476182,0.891733,210.94,210.92,42.48824018]
[1733801476364,7.9713,211.24,210.92,42.48824018]
[1733801476562,7.9713,211.24,210.96,42.48824018]
[1733801476783,17.9713,211.24,210.96,42.48824018]
[1733801477094,10.0,211.2,210.92,42.48824018]
[1733801477287,19.9999,211.19,210.9,42.48824018]
[1733801477501,9.9999,211.15,210.85,42.48824018]
[1733801477806,9.9999,211.14,210.85,42.48824018]
[1733801477996,22.3322,211.09,210.79,42.48824018]
[1733801478164,39.9999,211.02,210.79,312.0]
[1733801478368,20.0,211.02,210.79,312.0]
[1733801478574,10.0,211.0,210.79,312.0]
[1733801478782,10.0,211.0,210.73,42.48824018]
[1733801479169,10.0,211.0,210.6,42.48824018]
[1733801479170,10.0,210.95,210.69,42.48824018]
[1733801479375,19.9999,210.97,210.69,42.48824018]
[1733801479567,20.0,211.02,210.75,42.48824018]
[1733801479767,20.0,211.02,210.73,42.48824018]
[1733801479976,7.9713,211.07,210.79,42.48824018]
[1733801480175,7.9713,211.07,210.89,42.48824018]
[1733801480491,7.9713,211.07,210.8,42.48824018]
[1733801480492,7.9713,211.07,210.87,42.48824018]
[1733801480697,10.0,211.06,210.76,42.48824018]
[1733801480996,10.0,211.03,210.72,42.48824018]
[1733801481199,9.9999,211.05,210.8,42.48824018]
[1733801481501,17.9713,211.07,210.82,42.48824018]
[1733801481667,17.9713,211.07,210.75,312.0]
[1733801481668,10.0,211.03,210.75,312.0]
[1733801481864,14.41,210.99,210.7,42.48824018]
[1733801482060,10.0,211.02,210.7,42.48824018]
[1733801482264,20.0,211.01,210.74,42.48824018]
[1733801482496,10.0,210.97,210.68,42.48824018]
[1733801482661,20.0,211.01,210.7,42.48824018]
[1733801482861,26.44367318,211.07,210.7,42.48824018]
[1733801482862,9.9999,211.06,210.76,42.48824018]
[1733801483192,9.9999,211.06,210.7,42.48824018]
[1733801483193,7.9713,211.07,210.84,42.48824018]
[1733801483373,7.9713,211.07,210.8,42.48824018]
[1733801483374,7.9713,211.07,210.82,42.48824018]
[1733801483573,7.9713,211.07,210.8,42.48824018]
[1733801483901,7.9713,211.07,210.84,42.48824018]
[1733801484109,7.9713,211.07,210.88,42.48824018]
[1733801484412,7.9713,211.07,210.82,42.48824018]
[1733801484778,7.9713,211.07,210.84,42.48824018]
[1733801485187,7.9713,211.07,210.78,42.48824018]
[1733801485380,10.0,211.01,210.72,42.48824018]
[1733801485685,20.0,211.06,210.76,42.48824018]
[1733801485885,20.0,211.06,210.78,42.48824018]
[1733801486080,7.9713,211.07,210.8,42.48824018]
[1733801486283,7.9713,211.07,210.87,42.48824018]
[1733801486485,12.3323,211.09,210.89,42.48824018]
[1733801486709,12.3323,211.09,210.8,42.48824018]
[1733801486912,12.3323,211.09,210.77,12.7872]
[1733801487081,9.9999,211.06,210.75,42.48824018]
[1733801487281,12.3323,211.09,210.81,42.48824018]
[1733801487789,12.3323,211.09,210.75,42.48824018]
[1733801487983,12.3323,211.09,210.81,42.48824018]
[1733801488316,12.3323,211.09,210.82,42.48824018]
[1733801488486,22.3323,211.09,210.78,42.48824018]
[1733801488687,22.3323,211.09,210.8,42.48824018]
[1733801488688,12.3323,211.09,210.8,42.48824018]
[1733801488895,22.3322,211.09,210.76,42.48824018]
[1733801489103,10.0,211.04,210.72,42.48824018]
[1733801489310,10.0,211.08,210.74,42.48824018]
[1733801489489,254.60274417,211.09,210.74,42.48824018]
[1733801489699,20.0,211.05,210.74,42.48824018]
[1733801490628,18.2151,211.0,210.67,42.48824018]
[1733801490794,10.0,210.98,210.67,42.48824018]
[1733801490993,10.0,210.98,210.63,42.48824018]
[1733801490994,9.9999,210.94,210.63,42.48824018]
[1733801491190,10.0,210.84,210.55,42.48824018]
[1733801491499,21.3048,210.83,210.57,42.48824018]
[1733801491708,21.3048,210.83,210.59,42.48824018]
[1733801491893,21.3048,210.83,210.61,42.48824018]
[1733801492092,21.3048,210.83,210.65,42.48824018]
[1733801492305,13.0897,210.93,210.73,42.48824018]
[1733801492925,13.0897,210.93,210.71,42.48824018]
[1733801493297,13.0897,210.93,210.73,42.48824018]
[1733801493495,13.0897,210.93,210.75,42.48824018]
[1733801493708,13.0897,210.93,210.71,42.48824018]
[1733801494120,13.0897,210.93,210.64,42.48824018]
[1733801494325,13.0897,210.93,210.66,42.48824018]
[1733801494515,23.0896,210.93,210.62,42.48824018]
[1733801494713,13.0897,210.93,210.68,42.48824018]
[1733801495200,13.0897,210.93,210.64,42.48824018]
[1733801495402,13.0897,210.93,210.68,42.48824018]
[1733801495616,13.0897,210.93,210.66,42.48824018]
[1733801496014,13.0897,210.93,210.74,42.48824018]
[1733801496518,13.0897,210.93,210.7,42.48824018]
[1733801496729,13.0897,210.93,210.66,42.48824018]
[1733801496895,13.0897,210.93,210.64,42.48824018]
[1733801497392,13.0897,210.93,210.62,42.48824018]
[1733801497594,13.0897,210.93,210.6,42.48824018]
[1733801497816,9.9999,210.89,210.56,42.48824018]
[1733801498204,19.9999,210.91,210.56,42.48824018]
[1733801498405,34.4099,210.89,210.56,42.48824018]
[1733801498600,21.3048,210.83,210.5,42.48824018]
[1733801498807,0.12549,210.55,210.48,42.48824018]
[1733801499020,21.3048,210.83,210.45,14.65834006]
[1733801499021,21.3048,210.83,210.5,42.48824018]
[1733801499225,21.3048,210.83,210.46,42.48824018]
[1733801499226,19.9999,210.8,210.46,42.48824018]
[1733801499411,0.12549,210.55,210.48,42.48824018]
[1733801499614,0.12549,210.55,210.46,42.48824018]
[1733801499822,0.12549,210.55,210.48,42.48824018]
[1733801500115,21.3048,210.83,210.54,42.48824018]
[1733801500299,21.3048,210.83,210.63,42.48824018]
[1733801500649,20.8459,210.94,210.71,42.48824018]
[1733801500802,20.8459,210.94,210.67,42.48824018]
[1733801501002,9.9999,210.9,210.46,11.8787]
[1733801501227,9.9999,210.84,210.5,42.48824018]
[1733801501408,12.5238,210.85,210.54,42.48824018]
[1733801501611,12.5238,210.85,210.56,354.48824018]
[1733801501926,12.5238,210.85,210.58,42.48824018]
[1733801502101,12.5238,210.85,210.62,42.48824018]
[1733801502302,12.5238,210.85,210.56,42.48824018]
[1733801502526,12.5238,210.85,210.54,42.48824018]
[1733801502720,12.5238,210.85,210.52,42.48824018]
[1733801502915,12.5238,210.85,210.45,14.66555057]
[1733801502916,28.322,210.84,210.5,42.48824018]
[1733801503121,9.9999,210.82,210.48,42.48824018]
[1733801503319,20.0,210.81,210.52,42.48824018]
[1733801503530,20.0,210.81,210.54,42.48824018]
[1733801503732,30.0,210.81,210.5,42.48824018]
[1733801503942,30.0,210.81,210.29,67.69657878]
[1733801503943,0.12549,210.55,210.44,42.48824018]
[1733801504229,20.0,210.53,210.44,42.48824018]
[1733801504433,20.0,210.53,210.42,42.48824018]
[1733801504613,20.0,210.53,210.4,42.48824018]
[1733801504805,20.0,210.53,210.38,42.48824018]
[1733801505003,0.12549,210.55,210.46,42.48824018]
[1733801505205,12.5238,210.64,210.51,42.48824018]
[1733801505816,12.5238,210.64,210.39,10.0]
[1733801505817,12.5238,210.64,210.43,42.48824018]
[1733801506008,12.5238,210.64,210.45,42.48824018]
[1733801506217,12.5238,210.64,210.49,42.48824018]
[1733801506519,12.5238,210.64,210.48,42.48824018]
[1733801506837,0.12549,210.55,210.46,42.48824018]
[1733801507144,0.12549,210.55,210.36,42.48824018]
[1733801507311,20.0,210.53,210.38,42.48824018]
[1733801507514,20.0,210.53,210.42,42.48824018]
[1733801508040,20.0,210.53,210.4,42.48824018]
[1733801508241,20.0,210.53,210.42,42.48824018]
[1733801508728,0.12549,210.55,210.42,42.48824018]
[1733801508928,0.12549,210.55,210.46,42.48824018]
[1733801509135,0.12549,210.55,210.3,11.8877]
[1733801509341,0.12549,210.55,210.18,43.89952422]
[1733801509342,20.0,210.53,210.33,42.48824018]
[1733801509914,20.0,210.53,210.35,42.48824018]
[1733801510314,20.0,210.53,210.37,42.48824018]
[1733801510551,12.5238,210.64,210.41,42.48824018]
[1733801510911,12.5238,210.64,210.22,12.2796]
[1733801511114,10.0,210.61,210.26,42.48824018]
[1733801511419,10.0,210.61,210.28,42.48824018]
[1733801511613,10.0,210.54,210.26,42.48824018]
[1733801511852,8.3221,210.63,210.2,42.48824018]
[1733801511853,0.12549,210.55,210.28,42.48824018]
[1733801512044,0.12549,210.55,210.3,42.48824018]
[1733801512222,0.12549,210.55,210.28,42.48824018]
[1733801512416,0.12549,210.55,210.32,42.48824018]
[1733801512746,20.0,210.53,210.28,42.48824018]
[1733801512924,20.0,210.53,210.24,42.48824018]
[1733801513123,20.0,210.53,210.26,42.48824018]
[1733801513712,20.0,210.53,210.24,42.48824018]
[1733801514122,20.0,210.53,210.14,0.8717519]
[1733801514123,10.0,210.51,210.2,42.48824018]
[1733801514320,10.0,210.48,210.16,42.48824018]
[1733801514543,8.3221,210.5,210.2,42.48824018]
[1733801514847,8.3221,210.5,210.26,42.48824018]
[1733801515012,8.3221,210.5,210.28,42.48824018]
[1733801515220,8.3221,210.5,210.34,42.48824018]
[1733801515445,8.3221,210.5,210.3,42.48824018]
[1733801515738,8.3221,210.5,210.34,42.48824018]
[1733801515914,8.3221,210.5,210.3,42.48824018]
[1733801516121,8.3221,210.5,210.15,23.7925]
[1733801516317,8.3221,210.5,210.23,42.48824018]
[1733801516517,8.3221,210.5,210.25,42.48824018]
[1733801516841,8.3221,210.5,210.27,42.48824018]
[1733801517021,8.3221,210.5,210.31,42.48824018]
[1733801517534,8.3221,210.5,210.36,42.48824018]
[1733801517734,8.3221,210.5,210.34,42.48824018]
[1733801518245,8.3221,210.5,210.36,42.48824018]
[1733801518423,8.3221,210.5,210.32,42.48824018]
[1733801518625,8.3221,210.5,210.31,42.48824018]
[1733801518941,8.3221,210.5,210.18,42.48824018]